bitfinex/quotes_BTCUSD_20250826
["timestamp","ask_amount","ask_price","bid_price","bid_amount"]
[1756208075491,6.98506525,109960.0,109950.0,0.002]
[1756208075742,7.07652727,109960.0,109950.0,0.002]
[1756208075892,7.17430809,109960.0,109950.0,0.002]
[1756208076227,0.1819174,109940.0,109930.0,0.0002]
[1756208076427,0.94486462,109940.0,109930.0,0.00067728]
[1756208076849,6.60150742,109940.0,109930.0,0.00067728]
[1756208077272,6.70297239,109940.0,109930.0,0.00067728]
[1756208078053,5.48707795,109940.0,109930.0,0.00067728]
[1756208078272,7.04297239,109940.0,109930.0,0.00067728]
[1756208078476,7.05720602,109940.0,109930.0,0.00067728]
[1756208078677,6.90220602,109940.0,109930.0,0.00167728]
[1756208078876,7.05720602,109940.0,109930.0,0.00167728]
[1756208080251,5.80984661,109940.0,109930.0,0.00167728]
[1756208080558,6.41779383,109940.0,109930.0,0.00167728]
[1756208082365,6.26275383,109940.0,109930.0,0.00167728]
[1756208082566,6.38351725,109940.0,109930.0,0.00167728]
[1756208082775,6.21416362,109940.0,109930.0,0.00167728]
[1756208082976,6.36928362,109940.0,109930.0,0.00167728]
[1756208083782,6.4036402,109940.0,109930.0,0.00167728]
[1756208085465,6.2485202,109940.0,109930.0,0.00167728]
[1756208085712,6.4036402,109940.0,109930.0,0.00167728]
[1756208090406,7.01158742,109940.0,109930.0,0.00167728]
[1756208090810,6.4036402,109940.0,109930.0,0.00167728]
[1756208091775,7.01158742,109940.0,109930.0,0.00167728]
[1756208091973,7.2259997,109940.0,109930.0,0.00167728]
[1756208092668,7.0708797,109940.0,109930.0,0.00167728]
[1756208092874,7.2259197,109940.0,109930.0,0.00167728]
[1756208093081,7.0708797,109940.0,109930.0,0.00067728]
[1756208093288,7.2259197,109940.0,109930.0,0.00067728]
[1756208093494,7.2279197,109940.0,109930.0,0.00067728]
[1756208094765,7.2309197,109940.0,109930.0,0.00067728]
[1756208095190,7.25031301,109940.0,109930.0,0.00067728]
[1756208096805,7.26454771,109940.0,109930.0,0.00067728]
[1756208097560,7.28139134,109940.0,109930.0,0.00067728]
[1756208097990,7.12635178,109940.0,109930.0,0.00067728]
[1756208098197,7.28143178,109940.0,109930.0,0.00067728]
[1756208098669,7.13267053,109940.0,109930.0,0.00067728]
[1756208098870,7.28779053,109940.0,109930.0,0.00067728]
[1756208100339,7.28775053,109940.0,109930.0,0.00067728]
[1756208100530,7.19633127,109940.0,109930.0,0.00067728]
[1756208101439,7.06552215,109940.0,109930.0,0.00067728]
[1756208101606,7.22060215,109940.0,109930.0,0.00067728]
[1756208102415,7.21757215,109940.0,109930.0,0.00067728]
[1756208102614,7.22052215,109940.0,109930.0,0.00067728]
[1756208102826,7.14891704,109940.0,109930.0,0.00067728]
[1756208103035,7.30403704,109940.0,109930.0,0.00067728]
[1756208104066,7.22052215,109940.0,109930.0,0.00067728]
[1756208104292,7.09782928,109940.0,109930.0,0.00067728]
[1756208104498,1.26150179,109940.0,109930.0,0.00582728]
[1756208104704,1.35992378,109940.0,109930.0,0.00582728]
[1756208105091,1.34307775,109940.0,109930.0,0.00582728]
[1756208105510,1.18795775,109940.0,109930.0,0.00582728]
[1756208105717,1.34107775,109940.0,109930.0,0.00582728]
[1756208105932,1.18595775,109940.0,109930.0,0.00582728]
[1756208106141,1.18395962,109940.0,109930.0,0.00582728]
[1756208106347,1.34111962,109940.0,109930.0,0.00582728]
[1756208106519,1.33477493,109940.0,109930.0,0.00582728]
[1756208106757,1.34111898,109940.0,109930.0,0.00582728]
[1756208106968,1.34111897,109940.0,109930.0,0.00582728]
[1756208107988,0.73317175,109940.0,109930.0,0.00582728]
[1756208108194,1.18595897,109940.0,109930.0,0.00582728]
[1756208108402,1.33477493,109940.0,109930.0,0.00582728]
[1756208109045,1.33477493,109940.0,109930.0,0.27922325]
[1756208109046,1.16022162,109940.0,109930.0,0.27922325]
[1756208109266,0.97546162,109940.0,109930.0,0.0972893]
[1756208109519,0.97546162,109940.0,109930.0,0.27922325]
[1756208109739,1.31546162,109940.0,109930.0,0.27922325]
[1756208110434,1.15922162,109940.0,109930.0,0.27922325]
[1756208111341,1.31270162,109940.0,109930.0,0.27922325]
[1756208111802,1.31270162,109940.0,109930.0,0.28022325]
[1756208112227,0.367357,109940.0,109930.0,0.29767227]
[1756208112432,0.367357,109940.0,109930.0,0.29667227]
[1756208112643,0.367357,109940.0,109930.0,0.29967227]
[1756208112842,0.027357,109940.0,109930.0,0.29967227]
[1756208115287,0.027357,109940.0,109930.0,0.45511227]
[1756208116116,0.94894791,109950.0,109940.0,0.1819174]
[1756208116330,1.31357164,109950.0,109940.0,0.27849942]
[1756208116797,1.15821164,109950.0,109940.0,0.27849942]
[1756208117988,0.00100069,109950.0,109940.0,0.29594844]
[1756208118865,0.00100069,109950.0,109940.0,0.29694844]
[1756208119272,0.00100069,109950.0,109940.0,0.29894844]
[1756208119541,0.60894791,109950.0,109940.0,0.29894844]
[1756208119726,0.60894791,109950.0,109940.0,0.30194844]
[1756208119898,0.00100069,109950.0,109940.0,0.30194844]
[1756208120314,0.79084877,109950.0,109940.0,0.45718844]
[1756208120693,0.79084877,109950.0,109940.0,0.30194844]
[1756208120891,0.79084877,109950.0,109940.0,0.45718844]
[1756208121094,0.18290155,109950.0,109940.0,0.45718844]
[1756208121315,0.79084877,109950.0,109940.0,0.45718844]
[1756208122909,0.00100069,109950.0,109940.0,0.45718844]
[1756208123132,0.79084877,109950.0,109940.0,0.45718844]
[1756208124038,0.79084877,109950.0,109940.0,0.30194844]
[1756208124269,0.79084877,109950.0,109940.0,0.45734844]
[1756208124525,0.60894791,109950.0,109940.0,0.45734844]
[1756208124748,0.00100069,109950.0,109940.0,0.45734844]
[1756208126144,0.60894791,109950.0,109940.0,0.45734844]
[1756208127479,0.00100069,109950.0,109940.0,0.45734844]
[1756208131743,0.00100069,109950.0,109940.0,1.58399566]
[1756208131989,0.00100069,109950.0,109940.0,1.61133366]
[1756208132194,0.00100069,109950.0,109940.0,1.34263366]
[1756208132353,0.00100069,109950.0,109940.0,1.68263366]
[1756208133271,0.00100069,109950.0,109940.0,1.67963366]
[1756208133679,0.00100069,109950.0,109940.0,1.67663366]
[1756208133893,0.00100069,109950.0,109940.0,1.67763366]
[1756208134080,0.00100069,109950.0,109940.0,1.68263366]
[1756208134416,0.00100069,109950.0,109940.0,2.08163366]
[1756208134614,0.00100069,109950.0,109940.0,2.08563366]
[1756208135699,0.00100069,109950.0,109940.0,1.32228644]
[1756208135944,0.00100069,109950.0,109940.0,1.47760644]
[1756208136155,0.00100069,109950.0,109940.0,2.08555366]
[1756208136777,0.00100069,109950.0,109940.0,2.18150366]
[1756208136985,0.00100069,109950.0,109940.0,2.45020366]
[1756208141682,0.00100069,109950.0,109940.0,2.35425366]
[1756208142009,0.00100069,109950.0,109940.0,1.74630644]
[1756208142210,0.00100069,109950.0,109940.0,2.35425366]
[1756208144722,0.00100069,109950.0,109940.0,2.19893366]
[1756208144924,0.00100069,109950.0,109940.0,2.35405366]
[1756208146690,0.00100069,109950.0,109940.0,2.45000366]
[1756208146899,0.00100069,109950.0,109940.0,2.65000366]
[1756208150192,1e-08,109950.0,109940.0,2.65000366]
[1756208150423,1e-08,109950.0,109940.0,2.654745]
[1756208151947,1e-08,109950.0,109940.0,2.499625]
[1756208152175,0.00215001,109950.0,109940.0,1.61823644]
[1756208152440,0.00215001,109950.0,109940.0,0.95971742]
[1756208152645,0.61314723,109950.0,109940.0,0.43737942]
[1756208153279,0.61314723,109950.0,109940.0,0.43237942]
[1756208153501,0.61314723,109950.0,109940.0,0.44582844]
[1756208153740,0.61314723,109950.0,109940.0,0.43437942]
[1756208154532,0.61314723,109950.0,109940.0,0.45182844]
[1756208156874,0.61314723,109950.0,109940.0,0.29682844]
[1756208156875,0.79504809,109950.0,109940.0,0.29682844]
[1756208157019,0.79504809,109950.0,109940.0,0.45182844]
[1756208157224,0.79504809,109950.0,109940.0,0.44882844]
[1756208157478,0.79504809,109950.0,109940.0,0.44582844]
[1756208157672,0.79504809,109950.0,109940.0,0.44782844]
[1756208157877,0.79504809,109950.0,109940.0,0.44982844]
[1756208158293,0.61314723,109950.0,109940.0,0.44982844]
[1756208158500,0.79504809,109950.0,109940.0,0.11291104]
[1756208158704,0.79504809,109950.0,109940.0,0.26791104]
[1756208159119,0.79504809,109950.0,109940.0,0.26591104]
[1756208159323,0.18710087,109950.0,109940.0,0.26791104]
[1756208159498,0.18710087,109950.0,109940.0,0.44782844]
[1756208159499,0.79504809,109950.0,109940.0,0.44782844]
[1756208159704,0.00520001,109950.0,109940.0,0.44782844]
[1756208159907,0.61314723,109950.0,109940.0,0.44682844]
[1756208160173,0.61314723,109950.0,109940.0,0.44782844]
[1756208160404,0.79504809,109950.0,109940.0,0.26591104]
[1756208160761,0.79504809,109950.0,109940.0,0.44782844]
[1756208160964,0.79504809,109950.0,109940.0,0.09346202]
[1756208161164,0.79504809,109950.0,109940.0,0.24846202]
[1756208161372,1.13504809,109950.0,109940.0,0.09346202]
[1756208161652,0.55444787,109950.0,109940.0,0.24850202]
[1756208161836,1.16239509,109950.0,109940.0,0.24850202]
[1756208165215,1.17291532,109950.0,109940.0,0.24850202]
[1756208166867,1.17291532,109950.0,109940.0,0.002]
[1756208167073,1.14556832,109950.0,109940.0,0.15704]
[1756208167899,0.5376211,109950.0,109940.0,0.15704]
[1756208168119,1.14556832,109950.0,109940.0,0.15704]
[1756208168744,0.34520001,109950.0,109940.0,0.43269338]
[1756208168970,1.13504809,109950.0,109940.0,0.43041942]
[1756208169403,0.52710087,109950.0,109940.0,0.43041942]
[1756208169620,1.13504809,109950.0,109940.0,0.24850202]
[1756208171167,1.14557569,109950.0,109940.0,0.24850202]
[1756208171563,0.80037568,109950.0,109940.0,0.24850202]
[1756208172005,0.60794722,109950.0,109940.0,0.43561942]
[1756208172221,0.78984808,109950.0,109940.0,0.43561942]
[1756208172459,0.20923839,109960.0,109950.0,0.18190086]
[1756208172714,0.21964784,109960.0,109950.0,0.27641288]
[1756208172922,0.82759506,109960.0,109950.0,0.27641288]
[1756208173126,0.82759506,109960.0,109950.0,0.27336288]
[1756208173349,0.82759506,109960.0,109950.0,0.09146202]
[1756208173576,1.77554228,109960.0,109950.0,0.09146202]
[1756208174034,1.77654228,109960.0,109950.0,0.09146202]
[1756208174237,0.1819174,109940.0,109930.0,0.29780408]
[1756208174454,0.1819174,109940.0,109930.0,0.5464561]
[1756208174689,0.78986462,109940.0,109930.0,0.5464561]
[1756208174900,0.78986462,109940.0,109930.0,0.54645627]
[1756208175560,0.78986462,109940.0,109930.0,0.54845627]
[1756208176450,0.78986462,109940.0,109930.0,0.55045627]
[1756208176780,0.78986462,109940.0,109930.0,0.39541627]
[1756208176981,0.78986462,109940.0,109930.0,0.55045627]
[1756208177200,0.78986462,109940.0,109930.0,0.36852232]
[1756208177413,0.78986462,109940.0,109930.0,0.55045627]
[1756208178675,0.1819174,109940.0,109930.0,0.55045627]
[1756208178893,0.78986462,109940.0,109930.0,0.1908333]
[1756208179575,1.16482748,109940.0,109930.0,0.09937128]
[1756208180384,1.12986462,109940.0,109930.0,0.09937128]
[1756208181352,0.5219174,109940.0,109930.0,0.09937128]
[1756208181559,1.12986462,109940.0,109930.0,0.09937128]
[1756208182581,1.15721662,109940.0,109930.0,0.09937128]
[1756208184487,0.5492694,109940.0,109930.0,0.09937128]
[1756208184725,1.31225662,109940.0,109930.0,0.10457128]
[1756208184946,1.31225662,109940.0,109930.0,0.10242128]
[1756208186384,1.15721662,109940.0,109930.0,0.10242128]
[1756208186581,1.31225662,109940.0,109930.0,0.10242128]
[1756208189004,1.31225662,109940.0,109930.0,0.09937128]
[1756208189215,1.31225662,109940.0,109930.0,0.10457128]
[1756208189421,1.31225662,109940.0,109930.0,0.10242128]
[1756208189946,1.31225662,109940.0,109930.0,0.09937128]
[1756208191965,1.31225662,109940.0,109930.0,0.10242128]
[1756208193582,0.5492694,109940.0,109930.0,0.1960333]
[1756208193814,0.78986462,109940.0,109930.0,0.37796725]
[1756208195218,0.1819174,109940.0,109930.0,0.39541627]
[1756208195706,0.94490307,109950.0,109940.0,0.1819174]
[1756208195897,0.94490307,109950.0,109940.0,0.27857942]
[1756208196088,0.78986307,109950.0,109940.0,0.27857942]
[1756208196295,0.94490307,109950.0,109940.0,0.27857942]
[1756208196513,0.82759406,109960.0,109950.0,0.18190086]
[1756208196722,0.78983154,109960.0,109950.0,0.2960119]
[1756208197776,0.60794722,109960.0,109950.0,0.2960119]
[1756208199651,0.18186778,109970.0,109960.0,0.18188432]
[1756208199852,0.19094515,109980.0,109960.0,0.43258634]
[1756208199853,0.37332715,109980.0,109960.0,0.43258634]
[1756208200067,0.789815,109970.0,109960.0,0.33807432]
[1756208200694,0.789815,109970.0,109960.0,0.34112432]
[1756208201542,0.60794722,109970.0,109960.0,0.35857334]
[1756208201942,0.60794722,109970.0,109960.0,0.36057334]
[1756208202148,0.60794722,109970.0,109960.0,0.45203536]
[1756208202359,1.12979846,109980.0,109970.0,0.18186778]
[1756208202571,1.12979846,109980.0,109970.0,0.25175202]
[1756208202987,0.52185124,109980.0,109970.0,0.25175202]
[1756208203433,1.12979846,109980.0,109970.0,0.25175202]
[1756208203619,1.13079846,109980.0,109970.0,0.25189565]
[1756208206136,1.28607846,109980.0,109970.0,0.09160565]
[1756208206524,1.31341946,109980.0,109970.0,0.09160565]
[1756208207462,1.31341946,109980.0,109970.0,0.09472565]
[1756208207875,1.31341946,109980.0,109970.0,0.09160565]
[1756208208280,1.38110233,109980.0,109970.0,0.00014363]
[1756208208932,1.98904955,109980.0,109970.0,0.00014363]
[1756208209555,1.38110233,109980.0,109970.0,0.00014363]
[1756208209982,1.31341946,109980.0,109970.0,0.00014363]
[1756208212713,0.97341946,109980.0,109970.0,0.00014363]
[1756208213513,1.04110233,109980.0,109970.0,0.00014363]
[1756208214053,1.00613947,109980.0,109970.0,0.00014363]
[1756208214591,0.81813946,109980.0,109970.0,0.00014363]
[1756208214792,0.97345946,109980.0,109970.0,0.00326363]
[1756208216281,0.81813946,109980.0,109970.0,0.00539363]
[1756208216561,0.97341946,109980.0,109970.0,0.00326363]
[1756208216776,0.97341946,109980.0,109970.0,0.00539363]
[1756208216976,0.36547224,109980.0,109970.0,0.00539363]
[1756208217209,0.97341946,109980.0,109970.0,0.00539363]
[1756208217654,0.81813946,109980.0,109970.0,0.00539363]
[1756208217871,0.97341946,109980.0,109970.0,0.09685565]
[1756208218706,0.97337946,109980.0,109970.0,0.09685565]
[1756208218905,0.97337946,109980.0,109970.0,0.09472565]
[1756208219285,0.97337946,109980.0,109970.0,0.09685565]
[1756208222705,0.81813946,109980.0,109970.0,0.09685565]
[1756208222910,0.97329946,109980.0,109970.0,0.09685565]
[1756208223114,1.31329946,109980.0,109970.0,0.09912899]
[1756208223550,0.028341,109980.0,109970.0,0.29844579]
[1756208223761,0.001,109980.0,109970.0,0.29617245]
[1756208224591,0.7897828,109990.0,109980.0,0.18185124]
[1756208224796,0.7897828,109990.0,109980.0,0.09359202]
[1756208224979,0.7897828,109990.0,109980.0,0.09898516]
[1756208225180,0.7897828,109990.0,109980.0,0.09671202]
[1756208225418,0.18183558,109990.0,109980.0,0.09671202]
[1756208225629,0.7897828,109990.0,109980.0,0.09671202]
[1756208226266,0.7897828,109990.0,109980.0,0.09771202]
[1756208226685,0.7897828,109990.0,109980.0,0.09871202]
[1756208227523,0.8171198,109990.0,109980.0,0.09871202]
[1756208229517,0.82763079,109990.0,109980.0,0.09871202]
[1756208230341,0.21968357,109990.0,109980.0,0.09871202]
[1756208230545,0.82763079,109990.0,109980.0,0.09871202]
[1756208231812,0.98319079,109990.0,109980.0,0.09871202]
[1756208235600,0.98319079,109990.0,109980.0,0.09346202]
[1756208236021,0.98319079,109990.0,109980.0,0.09661202]
[1756208236226,1.35815365,109990.0,109980.0,0.002]
[1756208236432,1.32319079,109990.0,109980.0,0.002]
[1756208236636,1.35815365,109990.0,109980.0,0.002]
[1756208236842,1.32319079,109990.0,109980.0,0.002]
[1756208237675,1.39087366,109990.0,109980.0,0.002]
[1756208238305,1.46083366,109990.0,109980.0,0.002]
[1756208238518,6.44266566,109990.0,109980.0,0.002]
[1756208239139,6.46212933,109990.0,109980.0,0.002]
[1756208239510,6.44266566,109990.0,109980.0,0.002]
[1756208240269,7.14841063,109990.0,109980.0,0.002]
[1756208240470,7.17632195,109990.0,109980.0,0.002]
[1756208240704,6.55992706,109990.0,109980.0,0.002]
[1756208240904,0.24953411,109980.0,109970.0,0.00014363]
[1756208241109,6.60270055,109980.0,109970.0,0.00014363]
[1756208242342,6.94570055,109980.0,109970.0,1e-08]
[1756208242552,7.14806387,109980.0,109970.0,1e-08]
[1756208242753,7.16284201,109980.0,109970.0,1e-08]
[1756208243227,7.15439737,109980.0,109970.0,1e-08]
[1756208243393,7.16284172,109980.0,109970.0,1e-08]
[1756208243597,6.5548945,109980.0,109970.0,1e-08]
[1756208243845,7.16284172,109980.0,109970.0,1e-08]
[1756208244438,7.15439737,109980.0,109970.0,1e-08]
[1756208245416,7.02806922,109980.0,109970.0,1e-08]
[1756208245986,7.05541922,109980.0,109970.0,1e-08]
[1756208246203,7.09038208,109980.0,109970.0,1e-08]
[1756208247043,6.9892673,109980.0,109970.0,1e-08]
[1756208247461,6.9892673,109980.0,109970.0,0.00510001]
[1756208247462,6.31363721,109980.0,109970.0,0.00510001]
[1756208247719,6.40327288,109980.0,109970.0,0.00315001]
[1756208247856,6.40327288,109980.0,109970.0,1e-08]
[1756208248107,7.0112201,109980.0,109970.0,1e-08]
[1756208248308,7.0112201,109980.0,109970.0,0.00315001]
[1756208249153,0.34,109950.0,109930.0,0.16819099]
[1756208249399,0.98102748,109940.0,109930.0,0.26013029]
[1756208249605,0.98102748,109940.0,109930.0,0.26208029]
[1756208249838,1.00837948,109940.0,109930.0,0.26208029]
[1756208250253,1.00837948,109940.0,109930.0,0.1887833]
[1756208250733,0.97341662,109940.0,109930.0,0.1887833]
[1756208251264,0.97341662,109940.0,109930.0,0.1949333]
[1756208251716,0.97341662,109940.0,109930.0,0.1919333]
[1756208251964,0.97341662,109940.0,109930.0,0.1969333]
[1756208256237,0.97539662,109940.0,109930.0,0.1969333]
[1756208257145,1.31539662,109940.0,109930.0,0.1919333]
[1756208257628,1.31539662,109940.0,109930.0,0.10047128]
[1756208258286,1.31539662,109940.0,109930.0,0.09537128]
[1756208260015,1.9583067,109940.0,109930.0,0.09537128]
[1756208260224,6.9425987,109940.0,109930.0,0.09537128]
[1756208261470,6.9435987,109940.0,109930.0,0.09537128]
[1756208262155,6.9445987,109940.0,109930.0,0.09537128]
[1756208264593,5.57250426,109940.0,109930.0,0.09537128]
[1756208264823,6.90919584,109940.0,109930.0,0.09537128]
[1756208265539,6.75097584,109940.0,109930.0,0.09537128]
[1756208265752,6.29676862,109940.0,109930.0,0.10056128]
[1756208266167,6.29874862,109940.0,109930.0,0.09537128]
[1756208266414,6.33893396,109940.0,109930.0,0.09537128]
[1756208267994,6.18321396,109940.0,109930.0,0.09537128]
[1756208268254,6.94684118,109940.0,109930.0,0.09537128]
[1756208268458,6.96629579,109940.0,109930.0,0.09537128]
[1756208268660,7.00125865,109940.0,109930.0,0.09537128]
[1756208268880,0.5219505,109920.0,109910.0,0.09738826]
[1756208269021,1.89546494,109920.0,109910.0,0.09626611]
[1756208269231,1.89546494,109920.0,109910.0,0.09425611]
[1756208269232,1.9304278,109920.0,109910.0,0.09425611]
[1756208269446,1.99050681,109920.0,109910.0,0.09425611]
[1756208269787,1.92282394,109920.0,109910.0,0.09944611]
[1756208270400,1.92282394,109920.0,109910.0,0.10244611]
[1756208270600,1.92282394,109920.0,109910.0,0.09725611]
[1756208270801,1.9577868,109920.0,109910.0,0.10244611]
[1756208271296,1.96787079,109920.0,109910.0,0.10244611]
[1756208272183,7.07628809,109920.0,109910.0,0.09725611]
[1756208272419,7.10207844,109920.0,109910.0,0.09725611]
[1756208272620,7.01063315,109920.0,109910.0,0.09725611]
[1756208273025,7.00817315,109920.0,109910.0,0.09725611]
[1756208273780,7.00817315,109920.0,109910.0,0.09425611]
[1756208274206,7.01017315,109920.0,109910.0,0.09425611]
[1756208274788,7.01009315,109920.0,109910.0,0.09425611]
[1756208274997,6.85457315,109920.0,109910.0,0.09425611]
[1756208275228,6.82185314,109920.0,109910.0,0.09425611]
[1756208275453,6.97737314,109920.0,109910.0,0.09425611]
[1756208275666,6.94241028,109920.0,109910.0,0.09425611]
[1756208276091,6.94237028,109920.0,109910.0,0.09425611]
[1756208276522,6.78689028,109920.0,109910.0,0.09425611]
[1756208276741,6.94237028,109920.0,109910.0,0.09425611]
[1756208277230,6.78689028,109920.0,109910.0,0.09626611]
[1756208277436,6.78689028,109920.0,109910.0,0.09425611]
[1756208277645,6.94233028,109920.0,109910.0,0.09425611]
[1756208277990,6.93599671,109920.0,109910.0,0.09425611]
[1756208278199,6.94232348,109920.0,109910.0,0.09425611]
[1756208279119,6.94231534,109920.0,109910.0,0.09425611]
[1756208280483,7.00999821,109920.0,109910.0,0.09425611]
[1756208280695,7.03430901,109920.0,109910.0,0.09425611]
[1756208280911,5.63025456,109920.0,109910.0,0.09944611]
[1756208281122,6.93412857,109920.0,109910.0,0.09944611]
[1756208281339,6.94045634,109920.0,109910.0,0.09944611]
[1756208281785,7.01011921,109920.0,109910.0,0.09425611]
[1756208281992,7.00171,109920.0,109910.0,0.09425611]
[1756208282427,7.21497003,109920.0,109910.0,1e-08]
[1756208282655,0.18198362,109900.0,109890.0,0.00388]
[1756208282893,0.96497948,109900.0,109890.0,0.00392769]
[1756208283115,0.96497948,109900.0,109890.0,0.00593769]
[1756208283322,0.97005948,109900.0,109890.0,0.00593769]
[1756208284569,0.97203948,109900.0,109890.0,0.00693769]
[1756208284813,1.00700234,109900.0,109890.0,0.00174769]
[1756208285027,0.81445948,109900.0,109890.0,0.00693769]
[1756208285246,0.95061084,109900.0,109890.0,0.00693769]
[1756208285479,0.970049,109900.0,109890.0,0.00693769]
[1756208286579,0.972029,109900.0,109890.0,0.00693769]
[1756208287486,0.972029,109900.0,109890.0,0.00593769]
[1756208287693,0.972029,109900.0,109890.0,0.00074769]
[1756208287694,1.00799186,109900.0,109890.0,0.00074769]
[1756208287904,1.61593908,109900.0,109890.0,0.00074769]
[1756208288114,1.01432099,109900.0,109890.0,0.00074769]
[1756208288323,6.61738206,109900.0,109890.0,0.00074769]
[1756208288534,6.63682603,109900.0,109890.0,0.00074769]
[1756208288744,0.18200018,109890.0,109880.0,0.0002]
[1756208288954,6.56097981,109890.0,109880.0,0.00034374]
[1756208289173,6.63295981,109890.0,109880.0,0.00034374]
[1756208289410,6.63541981,109890.0,109880.0,0.00034374]
[1756208289643,6.97541981,109890.0,109880.0,0.00034374]
[1756208290319,7.22600999,109890.0,109880.0,1e-08]
[1756208290779,0.18201674,109880.0,109870.0,0.00508]
[1756208291019,6.58975001,109880.0,109870.0,0.00522361]
[1756208291235,1.64508802,109880.0,109870.0,0.00522361]
[1756208291442,1.67245902,109880.0,109870.0,0.00522361]
[1756208291851,1.51439902,109880.0,109870.0,0.00522361]
[1756208292052,1.63503616,109880.0,109870.0,0.00522361]
[1756208292259,1.63603616,109880.0,109870.0,0.00522361]
[1756208292403,7.00160218,109880.0,109870.0,0.00522361]
[1756208292614,7.02590715,109880.0,109870.0,0.00522361]
[1756208293500,7.02690715,109880.0,109870.0,0.00522361]
[1756208293710,7.02590715,109880.0,109870.0,0.00522361]
[1756208293918,7.02790715,109880.0,109870.0,0.00522361]
[1756208294330,0.52203331,109870.0,109860.0,1e-08]
[1756208294558,6.27525576,109870.0,109860.0,1e-08]
[1756208294772,6.27525576,109870.0,109860.0,0.00504001]
[1756208294773,6.20757289,109870.0,109860.0,0.00504001]
[1756208294946,6.3568165,109870.0,109860.0,0.00504001]
[1756208295158,6.3841895,109870.0,109860.0,0.00504001]
[1756208295359,6.3841895,109870.0,109860.0,1e-08]
[1756208295568,6.3861795,109870.0,109860.0,1e-08]
[1756208295730,6.26558236,109870.0,109860.0,1e-08]
[1756208295932,6.26558236,109870.0,109860.0,0.00504001]
[1756208295933,5.98605176,109870.0,109860.0,0.00504001]
[1756208296134,6.3042411,109870.0,109860.0,0.00504001]
[1756208296587,6.3052411,109870.0,109860.0,0.00504001]
[1756208296791,6.3062411,109870.0,109860.0,0.00504001]
[1756208297213,6.3082411,109870.0,109860.0,0.00504001]
[1756208297405,6.3062411,109870.0,109860.0,0.00504001]
[1756208297622,6.3062011,109870.0,109860.0,0.00504001]
[1756208298617,6.32558993,109870.0,109860.0,0.00504001]
[1756208298827,6.32758993,109870.0,109860.0,0.00504001]
[1756208299373,0.23079514,109870.0,109860.0,0.11395105]
[1756208299600,0.97495353,109870.0,109860.0,0.11395105]
[1756208300438,0.97395353,109870.0,109860.0,0.11395105]
[1756208300663,0.97295353,109870.0,109860.0,0.11395105]
[1756208300881,0.97295353,109870.0,109860.0,0.11795105]
[1756208301545,0.81735353,109870.0,109860.0,0.30227655]
[1756208301748,0.81735353,109870.0,109860.0,0.11795105]
[1756208301965,0.81735353,109870.0,109860.0,0.12022667]
[1756208302161,0.81735353,109870.0,109860.0,0.11795105]
[1756208302582,0.97307353,109870.0,109860.0,0.12022667]
[1756208302763,0.97319353,109870.0,109860.0,0.12022667]
[1756208303169,0.81735353,109870.0,109860.0,0.12022667]
[1756208304753,0.60794722,109870.0,109860.0,0.30227655]
[1756208304992,0.60794722,109870.0,109860.0,0.30000093]
[1756208305548,0.78998053,109870.0,109860.0,0.30000093]
[1756208305784,0.60794722,109870.0,109860.0,0.30000093]
[1756208307052,0.1821599,109880.0,109870.0,0.18203331]
[1756208307249,0.79010712,109880.0,109870.0,0.27853533]
[1756208308653,0.00014316,109880.0,109870.0,0.29598435]
[1756208308852,0.00014316,109880.0,109870.0,0.45170435]
[1756208308853,0.60809038,109880.0,109870.0,0.45170435]
[1756208309463,0.79010712,109880.0,109870.0,0.45170435]
[1756208309665,0.79010712,109880.0,109870.0,0.11395104]
[1756208310604,1.5907972,109880.0,109870.0,0.09346202]
[1756208310818,1.62351721,109880.0,109870.0,0.002]
[1756208311035,1.65088421,109880.0,109870.0,0.01944902]
[1756208311244,1.65088421,109880.0,109870.0,0.002]
[1756208311666,1.65088421,109880.0,109870.0,0.01944902]
[1756208311869,1.61592135,109880.0,109870.0,0.01944902]
[1756208312126,1.61592135,109880.0,109870.0,0.01844902]
[1756208312342,1.65088421,109880.0,109870.0,0.01844902]
[1756208312553,1.65088421,109880.0,109870.0,0.01744902]
[1756208312764,1.58320134,109880.0,109870.0,0.01744902]
[1756208312967,1.58420134,109880.0,109870.0,0.01744902]
[1756208313392,0.96370561,109880.0,109870.0,0.01744902]
[1756208314252,0.96172561,109880.0,109870.0,0.02248902]
[1756208315535,0.80592561,109880.0,109870.0,0.11395104]
[1756208315998,0.2115269,109880.0,109870.0,0.11395104]
[1756208316207,0.80592561,109880.0,109870.0,0.11395104]
[1756208316419,0.80492561,109880.0,109870.0,0.11395104]
[1756208316627,0.80392561,109880.0,109870.0,0.11395104]
[1756208317037,0.80392561,109880.0,109870.0,0.11622645]
[1756208317254,0.80392561,109880.0,109870.0,0.29825976]
[1756208317466,0.80392561,109880.0,109870.0,0.29598435]
[1756208318058,0.80392561,109880.0,109870.0,0.11395104]
[1756208318259,0.80392561,109880.0,109870.0,0.11622645]
[1756208319180,0.80392561,109880.0,109870.0,0.11395104]
[1756208319417,0.80590561,109880.0,109870.0,0.11395104]
[1756208319921,0.96170561,109880.0,109870.0,0.11395104]
[1756208320168,0.80590561,109880.0,109870.0,0.10891104]
[1756208320404,0.96166561,109880.0,109870.0,0.10891104]
[1756208322441,0.96166561,109880.0,109870.0,0.11410104]
[1756208322657,0.95968561,109880.0,109870.0,0.11410104]
[1756208322878,0.3652869,109880.0,109870.0,0.11410104]
[1756208323090,0.95968561,109880.0,109870.0,0.11410104]
[1756208323517,0.80392561,109880.0,109870.0,0.11410104]
[1756208323749,0.95980561,109880.0,109870.0,0.11410104]
[1756208323950,0.96178561,109880.0,109870.0,0.11410104]
[1756208325499,0.18203331,109870.0,109860.0,0.15596001]
[1756208325703,0.93438202,109870.0,109860.0,0.09146203]
[1756208326120,0.96420102,109870.0,109860.0,0.09146203]
[1756208326328,0.96420102,109870.0,109860.0,0.10891105]
[1756208327141,0.96175102,109870.0,109860.0,0.10891105]
[1756208327543,0.96175102,109870.0,109860.0,0.10991105]
[1756208328202,0.96175102,109870.0,109860.0,0.10891105]
[1756208329078,0.20940231,109870.0,109860.0,0.11410105]
[1756208329288,0.95980102,109870.0,109860.0,0.11637667]
[1756208329497,0.80380102,109870.0,109860.0,0.11637667]
[1756208329718,0.027369,109870.0,109860.0,0.29842655]
[1756208329928,0.18203331,109870.0,109860.0,0.45215093]
[1756208330145,0.93255861,109880.0,109860.0,0.45215093]
[1756208330347,0.93267861,109880.0,109870.0,0.09146202]
[1756208330553,0.96000361,109880.0,109870.0,0.09665202]
[1756208330974,0.96000361,109880.0,109870.0,0.09892743]
[1756208331606,0.80392361,109880.0,109870.0,0.09892743]
[1756208331829,0.80392361,109880.0,109870.0,0.10392743]
[1756208332559,0.62190687,109880.0,109870.0,0.28596074]
[1756208332786,0.00014316,109880.0,109870.0,0.30113435]
[1756208337350,0.00014316,109880.0,109870.0,0.31091738]
[1756208337578,0.00014316,109880.0,109870.0,0.90531609]
[1756208337832,0.00014316,109880.0,109870.0,1.49531609]
[1756208338217,0.00014316,109880.0,109870.0,1.90006105]
[1756208339297,0.00014316,109880.0,109870.0,1.89706105]